bitfinex/quotes_SOLUSD_20220128
["timestamp","ask_amount","ask_price","bid_price","bid_amount"]
[1643356236256,2.95669142,90.438,90.363,0.25]
[1643356238861,18.51167002,90.449,90.363,0.25]
[1643356239064,18.51167002,90.449,90.363,46.0606]
[1643356239262,16.6029,90.46,90.363,46.0606]
[1643356239561,11.89,90.467,90.363,46.0606]
[1643356239761,11.08214436,90.466,90.363,46.0606]
[1643356240161,9.08214436,90.466,90.363,46.0606]
[1643356240562,2.95669142,90.465,90.373,6.0]
[1643356240765,2.95669142,90.465,90.374,23.6099]
[1643356240962,0.25,90.464,90.374,23.6099]
[1643356241365,2.95669142,90.465,90.374,23.6099]
[1643356242463,21.46836144,90.465,90.374,23.6099]
[1643356242663,18.51167002,90.465,90.375,108.9]
[1643356242863,18.51167002,90.465,90.374,23.6099]
[1643356242864,18.51167002,90.465,90.391,108.9]
[1643356243064,2.95669142,90.479,90.401,6.0]
[1643356243267,2.95669142,90.479,90.403,41.8750938]
[1643356243664,18.51167002,90.487,90.404,109.15]
[1643356243864,18.51167002,90.487,90.405,23.9504]
[1643356244163,18.51167002,90.487,90.406,108.9]
[1643356244364,0.25,90.486,90.406,109.15]
[1643356245665,0.25,90.486,90.417,35.67156904]
[1643356245869,0.25,90.486,90.418,0.25]
[1643356246066,18.51167002,90.487,90.418,0.25]
[1643356246465,2.95669142,90.514,90.418,132.9414]
[1643356246466,1.51437075,90.502,90.418,132.9414]
[1643356246668,1.51437075,90.502,90.419,2.2791993]
[1643356246867,1.51437075,90.511,90.431,108.9]
[1643356247068,1.51437075,90.528,90.441,6.0]
[1643356247272,1.51437075,90.535,90.442,109.15]
[1643356247468,1.51437075,90.535,90.443,22.6072]
[1643356247668,1.51437075,90.536,90.45,6.0]
[1643356247870,1.51437075,90.538,90.453,6.0]
[1643356248067,1.51437075,90.539,90.46,6.0]
[1643356248268,1.51437075,90.536,90.461,69.93573134]
[1643356248470,1.51437075,90.536,90.464,6.0]
[1643356248674,1.51437075,90.536,90.471,6.0]
[1643356248869,1.51437075,90.541,90.472,24.2285]
[1643356249270,1.51437075,90.543,90.472,24.2285]
[1643356249472,1.51437075,90.544,90.472,24.2285]
[1643356249892,0.25,90.543,90.472,24.2285]
[1643356250269,1.51437075,90.548,90.472,24.2285]
[1643356250470,0.25,90.547,90.472,24.2285]
[1643356250975,0.25,90.548,90.472,24.2285]
[1643356251170,0.25,90.548,90.483,45.64049595]
[1643356251369,2.95669142,90.554,90.484,0.25]
[1643356251570,0.25,90.552,90.483,45.64049595]
[1643356251773,0.25,90.553,90.483,45.64049595]
[1643356251969,2.95669142,90.552,90.483,45.64049595]
[1643356252769,2.95669142,90.552,90.484,0.25]
[1643356254371,0.25,90.551,90.484,0.25]
[1643356254772,2.95669142,90.55,90.484,0.25]
[1643356255975,2.95669142,90.55,90.483,45.64049595]
[1643356256178,2.95669142,90.55,90.484,0.25]
[1643356256773,2.95669142,90.55,90.483,45.64049595]
[1643356256975,29.26742982,90.55,90.402,23.6713]
[1643356257273,123.01243386,90.549,90.414,47.7387]
[1643356257471,127.48349603,90.549,90.414,47.7387]
[1643356257672,1.51437075,90.542,90.414,47.7387]
[1643356257872,15.95,90.53,90.433,38.47740254]
[1643356258274,16.5916,90.52,90.433,38.47740254]
[1643356258680,13.81509314,90.519,90.433,38.47740254]
[1643356258876,13.81509314,90.519,90.434,0.25]
[1643356259075,2.95669142,90.518,90.434,23.6666]
[1643356260676,2.95669142,90.518,90.434,23.4166]
[1643356261078,2.95669142,90.518,90.435,0.25]
[1643356261282,0.25,90.517,90.435,0.25]
[1643356261676,2.95669142,90.516,90.435,0.25]
[1643356263179,2.95669142,90.516,90.434,23.4166]
[1643356263380,32.545,90.51,90.38,15.95]
[1643356263579,32.545,90.51,90.384,47.2295]
[1643356263789,30.23067927,90.509,90.384,47.2295]
[1643356263980,1.51437075,90.504,90.384,47.2295]
[1643356264183,15.95,90.49,90.384,47.2295]
[1643356264382,15.95,90.48,90.384,47.2295]
[1643356264582,32.5507,90.48,90.384,47.2295]
[1643356265011,2.95669142,90.479,90.384,47.2295]
[1643356265212,2.95669142,90.479,90.385,0.25]
[1643356265413,0.25,90.478,90.385,0.25]
[1643356265812,2.95669142,90.477,90.385,0.25]
[1643356266418,16.6022,90.47,90.385,0.25]
[1643356266619,32.5522,90.47,90.385,0.25]
[1643356266813,2.95669142,90.469,90.385,0.25]
[1643356267415,0.25,90.468,90.384,47.2295]
[1643356267620,16.6046,90.45,90.385,0.25]
[1643356268421,16.6046,90.45,90.384,47.2295]
[1643356268616,25.6346,90.45,90.384,47.2295]
[1643356269020,2.95669142,90.449,90.384,47.2295]
[1643356269217,3.20669142,90.449,90.384,47.2295]
[1643356270018,3.20669142,90.449,90.385,36.09947011]
[1643356273620,2.95669142,90.448,90.385,36.09947011]
[1643356274720,2.95669142,90.448,90.34,23.7278]
[1643356275121,2.95669142,90.448,90.35,6.0]
[1643356275320,2.95669142,90.448,90.351,0.25]
[1643356275520,2.95669142,90.448,90.351,6.25]
[1643356275721,2.95669142,90.458,90.352,37.55574706]
[1643356276121,2.95669142,90.458,90.362,6.0]
[1643356276322,16.6056,90.45,90.363,0.25]
[1643356276521,16.6056,90.45,90.353,23.1191]
[1643356276726,111.85669142,90.449,90.353,23.1191]
[1643356276921,111.85669142,90.449,90.341,23.9158]
[1643356277121,111.85669142,90.449,90.323,23.4663]
[1643356277122,2.95669142,90.448,90.323,23.4663]
[1643356277321,0.30809356,90.443,90.323,23.4663]
[1643356277522,15.95,90.43,90.323,23.4663]
[1643356277721,108.9,90.419,90.323,23.4663]
[1643356278121,108.9,90.419,90.324,43.57232241]
[1643356278321,2.95669142,90.418,90.324,43.57232241]
[1643356278523,2.95669142,90.418,90.325,0.25]
[1643356279226,16.6128,90.41,90.325,0.25]
[1643356279724,111.85669142,90.409,90.325,0.25]
[1643356279923,128.27227755,90.409,90.325,0.25]
[1643356280125,2.95669142,90.408,90.325,0.25]
[1643356280322,23.53229195,90.408,90.325,0.25]
[1643356280526,129.47560053,90.407,90.324,43.57232241]
[1643356280725,132.43229195,90.407,90.324,43.57232241]
[1643356280923,108.9,90.405,90.324,43.57232241]
[1643356281325,23.78229195,90.404,90.324,43.57232241]
[1643356281727,2.95669142,90.403,90.324,43.57232241]
[1643356281924,23.53229195,90.403,90.324,43.57232241]
[1643356282124,20.57560053,90.402,90.324,43.57232241]
[1643356282426,23.53229195,90.402,90.325,0.25]
[1643356282625,2.95669142,90.401,90.325,0.25]
[1643356282924,141.4648,90.4,90.324,43.57232241]
[1643356283126,141.4648,90.4,90.325,0.25]
[1643356283127,162.04040053,90.4,90.325,0.25]
[1643356283324,23.53229195,90.399,90.325,0.25]
[1643356283730,23.53185861,90.398,90.325,0.25]
[1643356283928,108.9,90.397,90.325,0.25]
[1643356284126,132.43185861,90.397,90.323,23.4663]
[1643356284328,16.6165,90.39,90.323,23.4663]
[1643356284526,16.6165,90.39,90.312,22.8618]
[1643356284728,23.53185861,90.389,90.312,22.8618]
[1643356285131,108.9,90.387,90.313,46.75636949]
[1643356285531,2.95669142,90.386,90.314,0.25]
[1643356285929,2.95669142,90.386,90.314,25.0786]
[1643356286531,2.95669142,90.386,90.314,24.8286]
[1643356286731,2.95669142,90.386,90.315,0.25]
[1643356287530,2.95669142,90.386,90.314,24.8286]
[1643356287531,23.53185861,90.386,90.314,24.8286]
[1643356287732,108.9,90.385,90.314,24.8286]
[1643356287931,16.6184,90.38,90.314,24.8286]
[1643356288133,108.9,90.379,90.268,1.50621078]
[1643356288333,111.85669142,90.379,90.281,47.3339]
[1643356288532,132.43185861,90.379,90.291,6.0]
[1643356288732,2.95669142,90.378,90.291,6.0]
[1643356288932,2.95669142,90.378,90.292,45.60669328]
[1643356289134,20.57516719,90.377,90.292,45.60669328]
[1643356289333,108.9,90.376,90.293,23.3421]
[1643356289536,111.85669142,90.376,90.293,23.5921]
[1643356289733,108.9,90.374,90.293,23.5921]
[1643356289936,108.9,90.374,90.293,23.3421]
[1643356290139,23.53185861,90.373,90.293,23.3421]
[1643356290537,2.95669142,90.372,90.293,23.3421]
[1643356291338,111.85669142,90.372,90.294,0.25]
[1643356291739,2.95669142,90.371,90.294,0.25]
[1643356292141,0.25,90.37,90.293,23.3421]
[1643356292339,108.9,90.369,90.293,23.3421]
[1643356292540,111.85669142,90.369,90.293,23.3421]
[1643356292940,2.95669142,90.368,90.293,23.3421]
[1643356293343,20.57516719,90.367,90.293,23.3421]
[1643356293543,108.9,90.366,90.293,23.3421]
[1643356293744,111.85669142,90.366,90.293,23.3421]
[1643356293943,111.85669142,90.366,90.281,23.2862]
[1643356294145,23.53185861,90.365,90.282,0.25]
[1643356294443,132.43185861,90.364,90.262,22.7886]
[1643356294647,16.6248,90.35,90.262,22.7886]
[1643356294843,108.9,90.349,90.262,22.7886]
[1643356295045,111.85669142,90.349,90.263,38.62657509]
[1643356295246,2.95669142,90.348,90.263,38.62657509]
[1643356295848,2.95669142,90.348,90.264,0.25]
[1643356297252,20.57516719,90.348,90.264,0.25]
[1643356297846,1.51437075,90.386,90.27,15.95]
[1643356298049,1.51437075,90.408,90.28,6.0]
[1643356298248,4.57210571,90.459,90.28,6.0]
[1643356298249,15.95,90.42,90.291,110.7]
[1643356298448,16.612,90.41,90.3,15.95]
[1643356298668,16.612,90.41,90.31,6.0]
[1643356298869,16.612,90.41,90.311,0.25]
[1643356299070,16.612,90.41,90.311,134.6022]
[1643356299269,1.51437075,90.426,90.311,134.6022]
[1643356299470,1.51437075,90.428,90.322,44.22065012]
[1643356299670,1.51437075,90.428,90.323,49.0388]
[1643356299872,1.51437075,90.428,90.332,6.0]
[1643356300069,1.51437075,90.428,90.333,6.0]
[1643356300369,1.51437075,90.428,90.334,0.25]
[1643356300569,112.21437075,90.429,90.334,0.25]
[1643356301171,1.76437075,90.428,90.334,28.7609]
[1643356301670,1.51437075,90.426,90.334,28.7609]
[1643356302269,1.51437075,90.427,90.334,28.7609]
[1643356302472,1.76437075,90.428,90.334,28.7609]
[1643356302874,1.51437075,90.426,90.334,28.7609]
[1643356303870,1.51437075,90.424,90.334,28.7609]
[1643356304769,1.51437075,90.421,90.334,28.7609]
[1643356305672,1.51437075,90.422,90.334,28.7609]
[1643356305871,1.51437075,90.419,90.334,28.7609]
[1643356306779,1.51437075,90.415,90.334,28.7609]
[1643356306978,15.95,90.43,90.339,110.7]
[1643356307182,54.6,90.481,90.338,70.0]
[1643356307183,3.0224484,90.449,90.338,70.0]
[1643356307380,6.02529368,90.449,90.348,6.0]
[1643356307579,4.57210571,90.475,90.348,6.0]
[1643356307580,3.0224484,90.459,90.36,15.95]
[1643356307785,3.0224484,90.477,90.362,38.00516502]
[1643356307979,3.0224484,90.477,90.372,6.0]
[1643356308179,3.0224484,90.479,90.373,24.7415]
[1643356308383,3.0040836,90.476,90.373,24.9915]
[1643356308579,3.0224484,90.483,90.383,6.0]
[1643356308780,3.0224484,90.486,90.39,15.95]
[1643356308979,3.0224484,90.496,90.392,41.31234968]
[1643356309181,3.0224484,90.497,90.392,41.31234968]
[1643356309380,3.0224484,90.5,90.402,6.0]
[1643356309580,3.0224484,90.499,90.402,6.0]
[1643356309779,2.95669142,90.496,90.403,24.4052]
[1643356309979,2.95669142,90.496,90.413,6.0]
[1643356310385,2.95669142,90.496,90.414,23.5155]
[1643356310783,2.99763372,90.495,90.414,23.5155]
[1643356311182,3.20669142,90.494,90.414,23.5155]
[1643356311382,16.5985,90.49,90.414,23.5155]
[1643356311783,2.95669142,90.489,90.415,0.25]
[1643356315785,16.65147113,90.488,90.415,0.25]
[1643356316998,19.51396545,90.487,90.415,0.25]
[1643356317187,19.76396545,90.487,90.414,23.5155]
[1643356317415,110.7,90.485,90.414,23.5155]
[1643356317789,37.38184658,90.484,90.414,23.5155]
[1643356318195,20.82457255,90.483,90.414,23.5155]
[1643356318390,16.5999,90.48,90.414,23.5155]
[1643356318892,17.86788113,90.479,90.414,23.5155]
[1643356319388,16.55727403,90.478,90.415,0.25]
[1643356319791,17.86788113,90.477,90.415,0.25]
[1643356320290,16.55727403,90.476,90.415,0.25]
[1643356320492,17.86788113,90.477,90.415,0.25]
[1643356320690,17.86788113,90.475,90.415,0.25]
[1643356321890,0.25,90.474,90.415,0.25]
[1643356322293,17.86788113,90.473,90.415,0.25]
[1643356322596,20.82457255,90.473,90.323,24.9093]
[1643356322793,20.82457255,90.473,90.352,47.8079]
[1643356322794,15.95,90.46,90.352,47.8079]
[1643356323194,48.54831743,90.459,90.352,47.8079]
[1643356323392,110.7,90.458,90.352,47.8079]
[1643356323595,159.24831743,90.458,90.353,38.15805469]
[1643356323794,34.42515516,90.457,90.353,38.40805469]
[1643356323994,48.54831743,90.457,90.353,38.15805469]
[1643356324194,48.54831743,90.456,90.353,38.15805469]
[1643356324397,16.6059,90.45,90.352,47.8079]
[1643356324595,15.95,90.44,90.326,95.0836]
[1643356324796,15.95,90.44,90.327,48.2123]
[1643356325002,16.55727403,90.439,90.327,48.2123]
[1643356325204,48.54831743,90.439,90.327,48.2123]
[1643356325402,16.6147,90.41,90.327,48.2123]
[1643356325606,16.6147,90.41,90.328,45.40741456]
[1643356325804,20.82457255,90.409,90.328,45.65741456]
[1643356326203,17.86788113,90.408,90.328,45.65741456]
[1643356326405,20.82457255,90.408,90.328,0.25]
[1643356326803,2.95669142,90.407,90.328,0.25]
[1643356327105,20.82457255,90.407,90.328,0.25]
[1643356327303,16.6145,90.4,90.328,0.25]
[1643356327502,16.6145,90.4,90.327,48.2123]
[1643356327706,2.95669142,90.399,90.327,48.2123]
[1643356328305,16.6145,90.4,90.327,48.2123]
[1643356328713,20.82457255,90.399,90.327,48.2123]
[1643356328908,20.82457255,90.399,90.328,0.25]
[1643356329109,16.6145,90.4,90.328,0.25]
[1643356329110,131.52457255,90.398,90.328,0.25]
[1643356329608,20.82457255,90.397,90.328,0.25]
[1643356330009,2.95669142,90.396,90.328,0.25]
[1643356330209,113.65669142,90.396,90.328,0.25]
[1643356331012,2.95669142,90.395,90.327,47.90002728]
[1643356331211,2.95669142,90.395,90.247,3.02779563]
[1643356331212,32.5668,90.39,90.26,15.95]
[1643356331412,32.5668,90.39,90.257,76.4242]
[1643356331611,21.95988422,90.389,90.257,76.4242]
[1643356331810,50.94251299,90.389,90.257,76.4242]
[1643356332011,50.94251299,90.388,90.257,76.4242]
[1643356332214,16.6229,90.35,90.258,46.2016]
[1643356332425,0.62497231,90.349,90.258,46.2016]
[1643356332632,3.58166373,90.349,90.258,46.2016]
[1643356332826,2.95669142,90.348,90.258,46.2016]
[1643356334426,16.6257,90.34,90.258,46.2016]
[1643356334827,2.95669142,90.339,90.259,0.25]
[1643356336231,16.6274,90.33,90.259,0.25]
[1643356336635,6.54597382,90.329,90.259,0.25]
[1643356337032,2.95669142,90.328,90.259,0.25]
[1643356337437,2.95669142,90.328,90.258,46.2016]
[1643356338935,3.5892824,90.329,90.258,46.2016]
[1643356340037,3.5892824,90.329,90.259,0.25]
[1643356340238,15.95,90.33,90.259,0.25]
[1643356340446,16.623,90.35,90.259,0.25]
[1643356340447,2.95669142,90.357,90.259,0.25]
[1643356340647,2.95669142,90.357,90.26,15.95]
[1643356340843,19.00035047,90.39,90.268,6.0]
[1643356341039,19.00035047,90.39,90.27,6.0]
[1643356341238,3.42900824,90.389,90.271,43.2740463]
[1643356341441,3.42900824,90.389,90.279,6.0]
[1643356341642,22.42935871,90.389,90.281,6.0]
[1643356341842,2.95669142,90.388,90.282,0.25]
[1643356342341,19.00035047,90.387,90.282,0.25]
[1643356342542,19.00035047,90.387,90.282,110.95]
[1643356342742,21.95704189,90.387,90.282,110.95]
[1643356343642,0.25,90.386,90.282,110.95]
[1643356344548,0.25,90.386,90.292,6.0]
[1643356344744,0.25,90.386,90.294,38.43582773]
[1643356344942,22.20704189,90.386,90.294,38.43582773]
[1643356345144,22.20704189,90.386,90.295,0.25]
[1643356345343,22.20704189,90.386,90.294,38.43582773]
[1643356345744,19.25035047,90.386,90.294,38.43582773]
[1643356346048,22.20704189,90.386,90.294,38.43582773]
[1643356346643,22.20704189,90.386,90.295,0.25]
[1643356349648,21.95704189,90.386,90.295,0.25]
[1643356349846,19.00035047,90.408,90.31,15.95]
[1643356350046,19.00035047,90.408,90.32,6.0]
[1643356350246,19.00035047,90.408,90.321,0.25]
[1643356350445,19.00035047,90.408,90.321,6.25]
[1643356350646,4.1024122,90.407,90.322,42.32194724]
[1643356350847,4.1024122,90.407,90.323,0.25]
[1643356351050,19.00035047,90.406,90.323,0.25]
[1643356352448,19.00035047,90.406,90.323,110.95]
[1643356352953,2.95669142,90.427,90.323,110.95]
[1643356353152,2.95669142,90.438,90.333,6.0]
[1643356353451,2.95669142,90.438,90.34,15.95]
[1643356353754,2.95669142,90.438,90.341,44.87449243]
[1643356353950,2.95669142,90.438,90.351,110.7]
[1643356354151,2.95669142,90.438,90.351,116.7]
[1643356354353,2.95669142,90.462,90.352,49.373]
[1643356354552,17.62812824,90.463,90.362,6.0]
[1643356354753,17.62812824,90.463,90.371,110.7]
[1643356354951,20.65057664,90.485,90.371,110.7]
[1643356355153,17.62812824,90.485,90.381,6.0]
[1643356355352,2.95669142,90.484,90.382,0.25]
[1643356355552,3.0224484,90.499,90.39,6.0]
[1643356355753,3.0224484,90.499,90.401,110.7]
[1643356355952,2.95669142,90.498,90.401,110.7]
[1643356356155,2.95669142,90.498,90.411,6.0]
[1643356356455,2.95669142,90.498,90.412,43.26526008]
[1643356356651,2.95669142,90.498,90.412,49.26526008]
[1643356356851,2.95669142,90.498,90.42,6.0]
[1643356357152,17.62812824,90.497,90.422,6.0]
[1643356357353,17.62812824,90.497,90.423,0.25]
[1643356357552,17.62812824,90.497,90.423,6.25]
[1643356358052,17.62812824,90.497,90.424,6.0]
[1643356358252,17.62812824,90.497,90.425,0.25]
[1643356358455,17.62812824,90.497,90.434,41.8629612]
[1643356358875,17.62812824,90.497,90.444,6.0]
[1643356359275,17.62812824,90.497,90.445,0.25]
[1643356360877,20.58481966,90.516,90.445,0.25]
[1643356361079,20.58481966,90.516,90.445,47.8734]
[1643356364284,17.62812824,90.515,90.445,47.6234]
[1643356364482,20.58481966,90.515,90.434,41.8629612]
[1643356364682,2.95669142,90.514,90.434,41.8629612]
[1643356364880,31.08212833,90.514,90.434,41.8629612]
[1643356365082,20.58481966,90.514,90.434,41.8629612]
[1643356365283,17.62812824,90.513,90.435,110.7]
[1643356365481,3.0224484,90.567,90.441,110.7]
[1643356365681,15.95,90.57,90.441,110.7]
[1643356365682,2.95669142,90.549,90.442,122.3109]
[1643356365982,2.95669142,90.549,90.452,158.13556895]
[1643356366184,2.95669142,90.549,90.453,24.6736]
[1643356366381,2.95669142,90.549,90.454,110.7]
[1643356366584,2.95669142,90.549,90.464,116.7]
[1643356366785,2.95669142,90.549,90.466,37.87844707]
[1643356367183,0.25,90.548,90.467,0.25]
[1643356368684,0.25,90.548,90.476,6.0]
[1643356368885,0.25,90.548,90.477,24.5056]
[1643356369886,1.00675973,90.546,90.477,24.2556]
[1643356370087,1.00675973,90.546,90.43,15.95]
[1643356370289,19.30070855,90.545,90.436,23.5599]
[1643356370587,127.04401713,90.544,90.436,23.5599]
[1643356370787,15.95,90.53,90.436,23.5599]
[1643356370989,16.5919,90.52,90.436,23.5599]
[1643356371189,32.5419,90.52,90.437,46.90953711]
[1643356371391,10.94216145,90.519,90.437,46.90953711]
[1643356371591,13.89885287,90.519,90.437,46.90953711]
[1643356371794,2.95669142,90.518,90.437,46.90953711]
[1643356371991,13.89885287,90.518,90.437,46.90953711]
[1643356372190,10.94216145,90.517,90.437,46.90953711]
[1643356372391,13.89885287,90.517,90.437,46.90953711]
[1643356372592,2.95669142,90.516,90.437,46.90953711]
[1643356372791,1.00675973,90.515,90.437,46.90953711]
[1643356372992,11.94892118,90.515,90.437,46.90953711]
[1643356373392,14.14885287,90.514,90.437,46.90953711]
[1643356374797,11.19216145,90.514,90.438,47.7883]
[1643356375195,2.95669142,90.513,90.438,47.7883]
[1643356375594,10.94216145,90.514,90.438,47.7883]
[1643356376197,2.95669142,90.526,90.438,47.7883]
[1643356376998,3.06608239,90.525,90.438,47.7883]
[1643356377396,2.95669142,90.524,90.438,47.7883]
[1643356378296,10.94216145,90.532,90.438,47.7883]
[1643356378497,10.94216145,90.532,90.448,6.0]
[1643356378698,10.94216145,90.532,90.449,22.5376]
[1643356378897,10.94216145,90.532,90.449,22.7876]
[1643356379096,0.25,90.531,90.449,22.7876]
[1643356379499,0.25,90.531,90.46,41.37963357]
[1643356380098,10.94216145,90.532,90.46,41.37963357]
[1643356380596,27.28617858,90.532,90.46,41.37963357]
[1643356380796,2.98844874,90.531,90.46,41.37963357]
[1643356380996,27.28617858,90.532,90.47,6.0]
[1643356381397,2.95669142,90.53,90.47,6.0]
[1643356381599,2.99150967,90.529,90.46,41.37963357]
[1643356382002,2.95669142,90.528,90.46,41.37963357]
[1643356382399,2.99150967,90.527,90.46,41.37963357]
[1643356382801,5.97913982,90.526,90.46,41.37963357]
[1643356383000,2.99150967,90.525,90.46,41.37963357]
[1643356383206,15.95,90.52,90.4,15.95]
[1643356383407,15.95,90.52,90.35,199.43]
[1643356383408,3.0224484,90.5,90.34,15.95]
[1643356383606,3.32585686,90.48,90.341,74.2018]
[1643356383803,15.95,90.47,90.341,74.2018]
[1643356384007,3.0224484,90.465,90.341,74.2018]
[1643356384204,16.6064,90.44,90.342,44.88567959]
[1643356384507,3.16489091,90.439,90.343,46.6643]
[1643356385009,17.10372375,90.439,90.342,44.88567959]
[1643356385203,2.95669142,90.438,90.342,44.88567959]
[1643356385406,22.92094855,90.438,90.342,44.88567959]
[1643356385606,30.94639855,90.437,90.342,44.88567959]
[1643356385806,2.99404742,90.436,90.342,44.88567959]
[1643356386007,36.89713739,90.436,90.342,44.88567959]
[1643356386205,22.95830455,90.435,90.342,44.88567959]
[1643356386403,110.7,90.429,90.342,44.88567959]
[1643356386604,1.0493638,90.419,90.342,44.88567959]
[1643356387204,4.00605522,90.419,90.342,44.88567959]
[1643356388005,21.01362093,90.419,90.342,44.88567959]
[1643356388805,110.7,90.418,90.342,44.88567959]
[1643356389204,110.7,90.416,90.342,44.88567959]
[1643356389610,22.92094855,90.415,90.342,44.88567959]
[1643356389808,110.95,90.414,90.342,44.88567959]
[1643356390007,110.7,90.409,90.342,44.88567959]
[1643356390608,110.7,90.407,90.342,44.88567959]
[1643356391008,19.96425713,90.406,90.342,44.88567959]
[1643356391214,3.13936984,90.405,90.342,44.88567959]
[1643356391614,19.96425713,90.404,90.342,44.88567959]
[1643356392626,19.96425713,90.404,90.343,0.25]
[1643356392627,0.25,90.403,90.343,0.25]
[1643356393225,0.25,90.403,90.342,44.88567959]
[1643356394029,15.95,90.4,90.342,44.88567959]
[1643356395432,15.95,90.4,90.343,0.25]
[1643356397233,0.25,90.399,90.343,0.25]
[1643356399433,19.62047935,90.398,90.343,0.25]
[1643356400835,19.62047935,90.398,90.297,70.7654]
[1643356401039,2.95669142,90.397,90.297,70.7654]
[1643356401235,113.65669142,90.397,90.295,76.4214]
[1643356401435,19.62047935,90.396,90.295,76.4214]
[1643356401634,34.94236775,90.396,90.295,76.4214]
[1643356401835,2.95669142,90.395,90.296,46.68656704]
[1643356402036,15.95,90.38,90.296,46.68656704]
[1643356402237,0.67615288,90.379,90.296,46.68656704]
[1643356402641,0.67615288,90.379,90.297,0.25]
[1643356403237,0.92615288,90.379,90.296,46.68656704]
[1643356403838,20.54663223,90.379,90.296,46.68656704]
[1643356404638,20.54663223,90.379,90.297,0.25]
[1643356406840,0.32144004,90.481,90.298,70.0]
[1643356407040,18.31325713,90.408,90.308,6.0]
[1643356407240,18.31325713,90.408,90.309,0.25]
[1643356407440,23.1054,90.439,90.309,6.25]
[1643356407640,23.1054,90.439,90.317,0.31901457]
[1643356407843,23.1054,90.439,90.32,193.0]
[1643356408042,23.1054,90.439,90.322,72.35]
[1643356408240,23.1054,90.439,90.33,22.6007]
[1643356408440,23.1054,90.439,90.34,15.95]
[1643356408644,16.89622251,90.475,90.35,21.95]
[1643356408841,16.89622251,90.475,90.352,36.62472507]
[1643356409041,16.89622251,90.475,90.362,6.0]
[1643356409244,16.89622251,90.475,90.363,124.4682]
[1643356409740,16.89622251,90.475,90.363,126.74831599]
[1643356410344,16.89622251,90.475,90.364,110.7]
[1643356410840,16.89622251,90.475,90.374,6.0]
[1643356411041,2.95669142,90.474,90.374,6.0]
[1643356411240,2.95669142,90.474,90.375,0.25]
[1643356411444,2.95669142,90.474,90.376,44.41371024]
[1643356411844,2.95669142,90.474,90.377,110.95]
[1643356413944,2.95669142,90.474,90.378,23.24]
[1643356414145,16.6005,90.47,90.378,23.24]
[1643356414545,2.95669142,90.469,90.378,23.24]
[1643356414744,19.85291393,90.469,90.376,44.41371024]
[1643356414943,19.88755885,90.468,90.376,44.41371024]
[1643356415146,2.99133634,90.467,90.376,44.41371024]
[1643356415346,16.89622251,90.467,90.377,0.25]
[1643356415548,2.95669142,90.467,90.377,0.25]
[1643356415746,19.85291393,90.466,90.386,6.0]
[1643356415947,19.85291393,90.466,90.377,24.6348]
[1643356416746,2.95669142,90.465,90.377,24.6348]
[1643356416947,16.89622251,90.466,90.377,24.6348]
[1643356418151,2.95669142,90.465,90.377,24.6348]
[1643356418548,2.95669142,90.465,90.377,24.3848]
[1643356418848,16.89622251,90.464,90.377,24.3848]
[1643356419247,2.95669142,90.463,90.377,24.3848]
[1643356419649,16.89622251,90.464,90.377,24.3848]
[1643356419849,16.89622251,90.464,90.378,0.25]
[1643356422452,16.89622251,90.464,90.377,24.3848]
[1643356422453,2.95669142,90.463,90.377,24.3848]
[1643356422655,15.95,90.46,90.34,15.95]
[1643356422852,15.95,90.46,90.322,47.7434]
[1643356423053,110.7,90.458,90.322,47.7434]
[1643356423256,16.6119,90.42,90.322,47.7434]
[1643356423453,16.6119,90.42,90.302,101.8298]
[1643356423653,32.5619,90.42,90.303,47.30458388]
[1643356423855,21.00846949,90.419,90.303,47.30458388]
[1643356424057,21.00846949,90.419,90.304,0.25]
[1643356424259,2.95669142,90.418,90.304,0.25]
[1643356424665,16.6132,90.41,90.304,0.25]
[1643356424863,16.6132,90.41,90.313,6.0]